bitfinex/quotes_BTCUSD_20220218
["timestamp","ask_amount","ask_price","bid_price","bid_amount"]
[1645215548716,0.01502383,40119.0,40111.0,0.0011]
[1645215548915,0.01502383,40119.0,40103.0,0.00246734]
[1645215548916,0.6227,40115.0,40103.0,0.00246734]
[1645215549114,0.02192793,40114.0,40103.0,0.00246734]
[1645215549318,0.010219,40110.0,40103.0,0.00246734]
[1645215549515,0.0498,40109.0,40103.0,0.00246734]
[1645215550116,0.28090428,40110.0,40103.0,0.00246734]
[1645215550317,0.06349127,40109.0,40103.0,0.00246734]
[1645215550518,0.06349127,40109.0,40106.0,6.384e-05]
[1645215550717,1.45,40108.0,40106.0,6.384e-05]
[1645215550916,0.0498,40107.0,40106.0,6.384e-05]
[1645215551320,0.04968984,40107.0,40106.0,6.384e-05]
[1645215551563,0.04968984,40107.0,40104.0,0.00106385]
[1645215552657,0.04968984,40107.0,40104.0,0.001]
[1645215553259,0.34968984,40107.0,40104.0,0.001]
[1645215553460,0.010219,40106.0,40104.0,0.001]
[1645215553659,0.0498,40105.0,40104.0,0.001]
[1645215554860,0.019219,40106.0,40105.0,0.09959999]
[1645215555062,0.010219,40106.0,40105.0,0.09959999]
[1645215555306,0.02279594,40106.0,40105.0,0.09959999]
[1645215555507,0.37259594,40106.0,40105.0,0.09959999]
[1645215555706,0.42259594,40106.0,40105.0,0.09959999]
[1645215555907,0.210019,40106.0,40105.0,0.09959999]
[1645215556107,0.510019,40106.0,40105.0,0.09959999]
[1645215556509,0.210019,40106.0,40105.0,0.09959999]
[1645215556908,0.110019,40106.0,40105.0,0.09959999]
[1645215557308,0.060019,40106.0,40105.0,0.09959999]
[1645215558109,0.110019,40106.0,40105.0,0.09959999]
[1645215558508,0.060019,40106.0,40105.0,0.09959999]
[1645215559170,0.0498,40106.0,40105.0,0.09959999]
[1645215561469,0.060019,40106.0,40105.0,0.09959999]
[1645215562668,0.0498,40106.0,40105.0,0.09959999]
[1645215564506,0.08800351,40110.0,40105.0,0.09959999]
[1645215564705,0.08800351,40110.0,40105.0,0.09986095]
[1645215564706,0.010219,40108.0,40105.0,0.09986095]
[1645215565408,0.010219,40106.0,40105.0,0.09986095]
[1645215565704,0.010219,40106.0,40105.0,0.09959999]
[1645215565908,0.08800351,40110.0,40105.0,0.24456148]
[1645215565909,0.05,40110.0,40105.0,0.24456148]
[1645215566105,0.01408697,40109.0,40105.0,0.24482244]
[1645215566305,0.01408697,40109.0,40105.0,0.09986095]
[1645215566559,0.010219,40109.0,40105.0,0.09986095]
[1645215566754,0.0226119,40109.0,40105.0,0.09986095]
[1645215566953,0.010219,40109.0,40107.0,0.11991154]
[1645215567153,0.015162,40109.0,40107.0,0.11991154]
[1645215567354,0.010219,40111.0,40107.0,0.11991154]
[1645215567552,0.010219,40113.0,40106.0,0.00026096]
[1645215567754,0.010219,40111.0,40105.0,0.09992192]
[1645215568153,0.010219,40111.0,40105.0,0.09986095]
[1645215568454,0.010219,40111.0,40106.0,6.097e-05]
[1645215568653,0.010219,40111.0,40106.0,0.1050195]
[1645215568852,0.07259,40112.0,40106.0,0.1050195]
[1645215569054,0.060219,40112.0,40106.0,0.10528046]
[1645215569255,0.01429071,40110.0,40106.0,0.10528046]
[1645215569453,0.01429071,40110.0,40106.0,0.10521949]
[1645215570907,0.01429071,40110.0,40106.0,0.25018098]
[1645215571108,0.01429071,40110.0,40109.0,0.14496149]
[1645215571408,0.01549966,40117.0,40109.0,0.3]
[1645215571708,0.01549966,40117.0,40109.0,0.44496149]
[1645215571907,0.010219,40116.0,40109.0,0.44496149]
[1645215572206,0.010219,40114.0,40109.0,0.44496149]
[1645215572609,0.010219,40114.0,40109.0,0.3]
[1645215572810,0.010219,40114.0,40113.0,0.10045754]
[1645215573413,0.010219,40116.0,40113.0,0.10045754]
[1645215573615,0.01549966,40117.0,40113.0,0.1007185]
[1645215573813,0.01549966,40117.0,40115.0,0.14496149]
[1645215575455,0.01549966,40117.0,40114.0,0.00026096]
[1645215575659,0.02571866,40117.0,40114.0,0.00026096]
[1645215576155,0.02571866,40117.0,40113.0,0.10045754]
[1645215576555,0.01549966,40117.0,40113.0,0.10045754]
[1645215576755,0.02571866,40117.0,40113.0,0.10045754]
[1645215577355,0.02571866,40117.0,40113.0,0.1007185]
[1645215577657,0.01549966,40117.0,40113.0,0.00026096]
[1645215577919,0.010219,40114.0,40112.0,0.00026096]
[1645215578119,0.010219,40113.0,40107.0,0.00998964]
[1645215578321,0.010219,40113.0,40107.0,0.00972868]
[1645215578521,0.010219,40114.0,40107.0,0.00972868]
[1645215578719,0.010219,40115.0,40109.0,0.40930458]
[1645215579020,0.010219,40115.0,40109.0,0.12009821]
[1645215579820,0.010219,40114.0,40109.0,0.12009821]
[1645215580222,0.112367,40116.0,40109.0,0.12009821]
[1645215580421,0.010219,40115.0,40109.0,0.12009821]
[1645215581678,0.060219,40116.0,40109.0,0.12009821]
[1645215581878,0.060219,40116.0,40109.0,0.43958698]
[1645215582080,0.060219,40116.0,40109.0,0.12009821]
[1645215582482,7.823e-05,40109.0,40108.0,0.00026096]
[1645215582679,7.823e-05,40109.0,40106.0,0.00026096]
[1645215582680,0.06009723,40109.0,40106.0,0.00026096]
[1645215582880,0.010219,40107.0,40105.0,0.09986095]
[1645215583080,0.060019,40107.0,40105.0,0.09959999]
[1645215583280,0.3,40106.0,40105.0,0.09959999]
[1645215583482,0.3498,40106.0,40105.0,0.09959999]
[1645215583682,0.3998,40106.0,40105.0,0.09959999]
[1645215583881,0.4998,40106.0,40105.0,9.999e-05]
[1645215584181,0.2595,40106.0,40105.0,9.999e-05]
[1645215584581,1.51768939,40104.0,40101.0,0.0071]
[1645215584786,1.51768939,40104.0,40099.0,0.0021]
[1645215584787,0.124795,40102.0,40099.0,0.0021]
[1645215584985,0.124795,40102.0,40092.0,0.0031]
[1645215584986,1.5,40100.0,40094.0,0.0041]
[1645215585183,0.010219,40095.0,40094.0,0.0041]
[1645215585408,1.4,40094.0,40092.0,0.0031]
[1645215585609,1.4498,40094.0,40092.0,0.0031]
[1645215585808,1.4,40093.0,40090.0,0.00110001]
[1645215586012,0.010219,40091.0,40090.0,0.00110001]
[1645215586208,1.40016,40090.0,40085.0,0.00337001]
[1645215586408,0.0498,40089.0,40085.0,0.00337001]
[1645215586608,0.0998,40089.0,40085.0,0.00337001]
[1645215586810,0.162217,40089.0,40085.0,0.00337001]
[1645215587008,0.0998,40089.0,40086.0,0.333386]
[1645215587209,0.1,40090.0,40089.0,0.24939999]
[1645215587610,0.29708347,40090.0,40089.0,0.24939999]
[1645215587808,0.30730247,40090.0,40089.0,0.24939999]
[1645215588307,0.40730247,40090.0,40089.0,0.24939999]
[1645215589163,1.524833,40089.0,40087.0,6.296e-05]
[1645215589362,0.060019,40088.0,40087.0,6.296e-05]
[1645215589566,0.360019,40088.0,40087.0,6.296e-05]
[1645215589761,0.61184051,40088.0,40087.0,6.296e-05]
[1645215589961,0.61184051,40088.0,40085.0,0.00337001]
[1645215590163,0.010219,40086.0,40085.0,0.00343298]
[1645215590363,0.060019,40086.0,40085.0,0.00343298]
[1645215590765,0.112215,40086.0,40085.0,0.00343298]
[1645215591171,0.112215,40086.0,40085.0,0.00337001]
[1645215591571,0.0498,40086.0,40085.0,0.00337001]
[1645215591766,0.062403,40094.0,40085.0,0.33675601]
[1645215591969,0.5369172,40095.0,40090.0,0.2868955]
[1645215592267,0.5,40095.0,40090.0,0.2868955]
[1645215592465,0.5,40095.0,40090.0,0.28695846]
[1645215592912,0.0094,40097.0,40092.0,0.14496149]
[1645215593112,0.010219,40096.0,40091.0,0.0094]
[1645215593312,0.010219,40093.0,40091.0,0.0094]
[1645215593715,0.0094,40097.0,40091.0,0.00946296]
[1645215593716,0.010219,40092.0,40091.0,0.00946296]
[1645215594112,0.010219,40092.0,40091.0,6.296e-05]
[1645215594712,0.010219,40092.0,40085.0,0.01297001]
[1645215594913,0.14798692,40095.0,40089.0,6.296e-05]
[1645215595114,0.15820592,40095.0,40089.0,6.296e-05]
[1645215595316,0.010219,40094.0,40091.0,0.26714262]
[1645215595715,0.010219,40094.0,40089.0,6.296e-05]
[1645215595916,0.05,40095.0,40088.0,0.14496149]
[1645215596116,0.160219,40096.0,40090.0,6.296e-05]
[1645215596320,0.060219,40096.0,40090.0,6.296e-05]
[1645215596565,0.35239096,40097.0,40090.0,6.296e-05]
[1645215596758,0.01436885,40095.0,40090.0,6.296e-05]
[1645215596957,0.01011577,40091.0,40090.0,6.296e-05]
[1645215597156,0.01011577,40091.0,40085.0,0.01297001]
[1645215597757,0.01555166,40094.0,40085.0,0.01297001]
[1645215597758,0.13360892,40090.0,40085.0,0.01297001]
[1645215597959,0.3,40089.0,40085.0,0.00337001]
[1645215598157,1.4,40087.0,40083.0,0.00208493]
[1645215598356,0.01277776,40085.0,40083.0,0.00208493]
[1645215598556,0.01277776,40085.0,40084.0,0.33542528]
[1645215598757,0.15,40087.0,40083.0,0.00208493]
[1645215599658,0.0092,40089.0,40084.0,0.3486858]
[1645215599861,0.0092,40089.0,40083.0,0.14704642]
[1645215600059,0.17481,40100.0,40083.0,0.14704642]
[1645215600060,0.0998,40100.0,40086.0,0.333386]
[1645215600308,0.02151872,40106.0,40087.0,0.009]
[1645215600309,0.0211717,40099.0,40087.0,0.009]
[1645215600709,0.0211717,40099.0,40090.0,0.14496149]
[1645215600909,0.33887504,40099.0,40090.0,0.14496149]
[1645215601111,0.01553008,40098.0,40090.0,0.14496149]
[1645215601311,0.01553008,40098.0,40087.0,0.071395]
[1645215601513,0.01553008,40098.0,40087.0,0.009]
[1645215601514,0.07792808,40098.0,40087.0,0.009]
[1645215601711,0.01579266,40097.0,40087.0,0.009]
[1645215602112,0.30748221,40095.0,40087.0,0.009]
[1645215602312,0.01682048,40094.0,40087.0,0.009]
[1645215602514,0.1240136,40092.0,40087.0,0.009]
[1645215602914,0.1740136,40092.0,40087.0,0.009]
[1645215603112,0.1740136,40092.0,40083.0,0.00208493]
[1645215603813,0.0095,40091.0,40085.0,0.30342459]
[1645215604069,0.0095,40091.0,40083.0,0.10237117]
[1645215604662,0.010219,40090.0,40083.0,0.10237117]
[1645215605262,0.010219,40090.0,40087.0,0.32082424]
[1645215605867,0.0095,40091.0,40087.0,0.46578573]
[1645215606065,0.00981,40092.0,40087.0,0.46578573]
[1645215606265,0.05981,40093.0,40087.0,0.46578573]
[1645215606765,0.00981,40093.0,40090.0,0.10353729]
[1645215606966,0.00981,40096.0,40091.0,0.333386]
[1645215607166,0.00981,40096.0,40090.0,0.10353729]
[1645215607167,0.00981,40098.0,40095.0,0.14496149]
[1645215607467,0.0097,40099.0,40095.0,0.14496149]
[1645215607668,0.00981,40100.0,40096.0,0.29185751]
[1645215607918,0.00981,40100.0,40095.0,0.14496149]
[1645215608519,0.00981,40100.0,40094.0,0.13343707]
[1645215608919,0.00981,40100.0,40096.0,0.30644081]
[1645215609321,0.00981,40100.0,40092.0,0.0096]
[1645215609521,0.010219,40099.0,40092.0,0.0096]
[1645215610320,0.010219,40099.0,40095.0,0.27230676]
[1645215611124,0.010219,40099.0,40092.0,0.0096]
[1645215611323,0.06612192,40104.0,40092.0,0.0096]
[1645215611574,0.010219,40099.0,40092.0,0.0096]
[1645215611762,0.010219,40097.0,40092.0,0.0096]
[1645215612161,0.010219,40097.0,40093.0,0.31449319]
[1645215612560,0.010219,40097.0,40092.0,0.0096]
[1645215612961,0.010219,40096.0,40092.0,0.0096]
[1645215614461,0.010219,40096.0,40089.0,0.13343707]
[1645215614661,0.010219,40095.0,40086.0,0.00025843]
[1645215614866,0.010219,40091.0,40087.0,0.11123663]
[1645215615066,0.28117976,40095.0,40083.0,0.00234336]
[1645215615067,0.0498,40094.0,40083.0,0.00234336]
[1645215615316,0.010219,40090.0,40084.0,0.00025843]
[1645215615516,0.010219,40090.0,40083.0,0.00234336]
[1645215615716,0.010219,40090.0,40083.0,0.13578043]
[1645215615918,0.010219,40090.0,40088.0,0.25256217]
[1645215616117,0.00981,40091.0,40088.0,0.25256217]
[1645215616317,0.01695697,40095.0,40090.0,0.13343707]
[1645215616518,0.01695697,40095.0,40089.0,0.00025843]
[1645215616718,0.010219,40094.0,40088.0,0.25256217]
[1645215616921,0.010219,40093.0,40088.0,0.25256217]
[1645215617217,0.010219,40093.0,40085.0,0.00025843]
[1645215617417,0.01695697,40095.0,40084.0,0.25200668]
[1645215617418,0.010219,40091.0,40084.0,0.25200668]
[1645215617617,0.010219,40090.0,40084.0,0.25200668]
[1645215617818,0.01695697,40095.0,40090.0,0.020438]
[1645215620158,0.01695697,40095.0,40094.0,0.32133232]
[1645215620361,0.4,40100.0,40094.0,0.32133232]
[1645215620563,0.1,40100.0,40094.0,0.1266286]
[1645215620762,0.01422115,40099.0,40094.0,0.1266286]
[1645215621965,0.01422115,40099.0,40096.0,0.34036115]
[1645215622363,0.01422115,40099.0,40095.0,0.00025843]
[1645215622562,0.01422115,40099.0,40094.0,0.1266286]
[1645215623014,0.07661615,40099.0,40094.0,0.1266286]
[1645215623213,1.4,40098.0,40091.0,0.00025843]
[1645215623413,1.4,40098.0,40090.0,0.020438]
[1645215623414,1.562397,40098.0,40090.0,0.020438]
[1645215623614,1.05,40097.0,40092.0,0.25677198]
[1645215623916,0.212395,40097.0,40092.0,0.25677198]
[1645215624115,0.15,40097.0,40091.0,0.00025843]
[1645215624314,0.15,40097.0,40090.0,0.020438]
[1645215624715,0.15,40097.0,40092.0,0.09821482]
[1645215625117,0.05,40097.0,40092.0,0.09821482]
[1645215627060,0.05,40097.0,40091.0,0.00025843]
[1645215627061,0.31437903,40096.0,40091.0,0.00025843]
[1645215627257,0.31437903,40096.0,40090.0,0.020438]
[1645215627258,0.062399,40096.0,40090.0,0.020438]
[1645215627456,0.162399,40096.0,40090.0,0.020438]
[1645215628057,0.162399,40096.0,40091.0,0.12396615]
[1645215628058,0.1,40096.0,40091.0,0.12396615]
[1645215628258,0.1,40096.0,40091.0,0.45741123]
[1645215628758,0.112396,40097.0,40091.0,0.45741123]
[1645215629358,0.05,40097.0,40091.0,0.45741123]
[1645215629564,0.05,40097.0,40091.0,0.5908483]
[1645215629760,0.00105201,40098.0,40091.0,0.5908483]
[1645215630613,0.00307868,40096.0,40091.0,0.5908483]
[1645215631218,0.00307868,40096.0,40091.0,0.45741123]
[1645215631615,0.00307868,40096.0,40091.0,0.12422458]
[1645215631815,0.00307868,40096.0,40095.0,0.13343707]
[1645215632013,0.00307868,40096.0,40092.0,0.00025843]
[1645215632216,0.00307868,40096.0,40091.0,0.12422458]
[1645215632616,0.00307868,40096.0,40092.0,0.06238083]
[1645215632816,0.00307868,40096.0,40092.0,0.06263926]
[1645215633216,0.00307868,40096.0,40093.0,0.25967936]
[1645215633419,0.00307868,40096.0,40095.0,0.13343707]
[1645215633620,0.00307868,40096.0,40095.0,0.75313152]
[1645215633818,0.00307868,40096.0,40095.0,0.46682307]
[1645215634262,0.00307868,40096.0,40095.0,1.22822307]
[1645215634461,0.00307868,40096.0,40095.0,0.99483707]
[1645215634667,0.05,40107.0,40097.0,0.7614]
[1645215634868,7.823e-05,40109.0,40106.0,0.13343707]
[1645215635163,7.823e-05,40109.0,40108.0,0.46682307]
[1645215635663,7.823e-05,40109.0,40108.0,0.13343707]
[1645215635863,7.823e-05,40109.0,40098.0,0.268967]
[1645215636067,7.823e-05,40109.0,40100.0,0.13343707]
[1645215636664,7.823e-05,40109.0,40103.0,0.25847673]
[1645215636865,7.823e-05,40109.0,40104.0,0.12832433]
[1645215637064,7.823e-05,40109.0,40101.0,0.13343707]
[1645215637666,7.823e-05,40109.0,40101.0,0.06236875]
[1645215637909,0.26178455,40115.0,40108.0,0.13343707]
[1645215638110,0.3,40119.0,40112.0,0.1263025]
[1645215638111,0.1,40119.0,40112.0,0.1263025]
[1645215638311,0.02452122,40122.0,40112.0,0.25973957]
[1645215638709,0.02452122,40122.0,40119.0,0.29642336]
[1645215638913,0.01532122,40122.0,40119.0,0.29642336]
[1645215639114,0.3925,40127.0,40120.0,0.13343707]
[1645215639310,0.05,40130.0,40121.0,0.11427292]
[1645215639311,0.0947489,40130.0,40121.0,0.11427292]
[1645215639611,0.01467353,40129.0,40121.0,0.11427292]
[1645215639812,0.01467353,40129.0,40125.0,0.13343707]
[1645215640017,0.01467353,40129.0,40126.0,0.06233291]
[1645215640413,0.31082043,40134.0,40126.0,0.06233291]
[1645215640610,0.40565954,40134.0,40126.0,0.06233291]
[1645215640814,0.12174993,40127.0,40126.0,0.06233291]
[1645215641013,0.12174993,40127.0,40120.0,0.0097]
[1645215641662,0.05,40127.0,40120.0,0.0097]
[1645215641862,0.01513073,40132.0,40120.0,0.0097]
[1645215641863,0.01513073,40132.0,40126.0,0.34746803]
[1645215642166,0.01513073,40132.0,40121.0,0.13343707]
[1645215642566,0.01513073,40132.0,40121.0,0.3]
[1645215642762,0.01513073,40132.0,40126.0,0.09957754]
[1645215643466,0.18371406,40137.0,40126.0,0.16190999]
[1645215643763,0.47527752,40140.0,40126.0,0.16190999]
[1645215643764,0.3,40139.0,40126.0,0.16190999]
[1645215644162,0.35,40139.0,40126.0,0.16190999]
[1645215644364,0.22143197,40135.0,40131.0,0.26432168]
[1645215644562,0.22143197,40135.0,40126.0,0.16190999]
[1645215644763,0.05,40135.0,40126.0,0.16190999]
[1645215645168,0.23464283,40136.0,40126.0,0.16190999]
[1645215645169,0.05,40136.0,40127.0,0.13584202]
[1645215645409,0.15,40138.0,40129.0,0.05732331]
[1645215645609,0.15,40138.0,40130.0,0.13343707]
[1645215646010,0.05,40138.0,40130.0,0.43343707]
[1645215646213,0.5873,40140.0,40135.0,0.1347403]
[1645215646410,0.4922667,40140.0,40135.0,0.1347403]
[1645215646811,0.15,40140.0,40135.0,0.1347403]
[1645215647211,0.02232585,40141.0,40135.0,0.1347403]
[1645215647212,0.07232585,40141.0,40135.0,0.1347403]
[1645215647410,0.02232585,40141.0,40135.0,0.1347403]
[1645215648011,0.02232585,40141.0,40133.0,0.06232168]
[1645215648414,0.062324,40140.0,40134.0,0.279562]
[1645215648612,0.062324,40140.0,40128.0,0.0095]
[1645215649067,0.11672353,40135.0,40128.0,0.0095]
[1645215649260,0.16672353,40135.0,40128.0,0.0095]
[1645215649560,0.16672353,40135.0,40129.0,0.33032739]
[1645215649760,0.062337,40134.0,40128.0,0.0095]
[1645215649960,0.062337,40134.0,40132.0,0.00245614]
[1645215650764,0.3,40133.0,40132.0,0.00245614]
[1645215650968,0.3,40133.0,40131.0,0.00482373]
[1645215650969,0.3,40133.0,40131.0,0.00239814]
[1645215650973,1.4,40132.0,40131.0,0.00239814]
[1645215651162,1.55,40132.0,40131.0,0.00239814]
[1645215653013,1.55,40132.0,40120.0,0.008584]
[1645215653014,0.24063664,40127.0,40120.0,0.008584]
[1645215653212,0.062352,40125.0,40120.0,0.008584]
[1645215653513,0.11112912,40123.0,40117.0,0.0094]
[1645215653713,0.16112912,40123.0,40117.0,0.0094]
[1645215654412,0.05,40123.0,40117.0,0.0094]
[1645215654611,0.062358,40122.0,40117.0,0.0094]
[1645215654812,0.16,40126.0,40117.0,0.0094]
[1645215655214,0.06,40126.0,40117.0,0.0094]
[1645215655914,0.06,40126.0,40120.0,0.27443638]
[1645215656115,0.01,40126.0,40121.0,0.13394028]
[1645215656562,0.062348,40124.0,40121.0,0.13394028]
[1645215656759,0.062348,40124.0,40117.0,0.0094]
[1645215657160,0.062348,40124.0,40119.0,0.27414716]
[1645215657559,0.062348,40124.0,40117.0,0.0094]
[1645215657760,0.062348,40124.0,40119.0,0.11409396]
[1645215659064,0.062348,40124.0,40117.0,0.0094]
[1645215659266,0.35,40123.0,40117.0,0.0094]
[1645215659666,0.45,40123.0,40117.0,0.0094]
[1645215659866,0.062354,40121.0,40117.0,0.0094]
[1645215660515,0.062354,40121.0,40114.0,0.14202107]
[1645215660715,0.062354,40121.0,40114.0,0.008584]
[1645215660915,0.33802135,40121.0,40114.0,0.36152925]
[1645215661114,0.33802135,40121.0,40114.0,0.008584]
[1645215661314,0.50451256,40121.0,40114.0,0.008584]
[1645215662514,0.22884521,40121.0,40114.0,0.008584]
[1645215662915,0.12884521,40121.0,40114.0,0.008584]
[1645215663519,0.44290226,40121.0,40114.0,0.008584]
[1645215663915,0.22884521,40121.0,40114.0,0.008584]
[1645215664362,0.22884521,40121.0,40114.0,0.14202107]
[1645215664762,0.00239414,40120.0,40114.0,0.14202107]
[1645215666173,0.00239414,40120.0,40118.0,0.5851565]
[1645215666562,0.00239414,40120.0,40118.0,0.2607705]
[1645215667165,0.00239414,40120.0,40118.0,0.07133606]
[1645215668206,0.00239414,40120.0,40118.0,0.37376136]
[1645215668409,0.00239414,40120.0,40118.0,0.07133606]
[1645215668608,0.00239414,40120.0,40118.0,0.009]
[1645215669508,0.00239414,40120.0,40114.0,0.14202107]
[1645215669909,0.3,40124.0,40116.0,0.0021183]
[1645215670111,0.062355,40121.0,40116.0,0.0021183]
[1645215670913,0.0498,40121.0,40116.0,0.0021183]
[1645215671114,0.0998,40121.0,40116.0,0.0021183]
[1645215671325,0.0498,40121.0,40116.0,0.06446553]
[1645215671764,0.0233542,40123.0,40116.0,0.06446553]
[1645215672566,0.10125751,40126.0,40116.0,0.0021183]
[1645215672766,0.10125751,40126.0,40117.0,0.1246808]
[1645215672767,0.15125751,40126.0,40117.0,0.1246808]
[1645215673365,0.05125751,40126.0,40121.0,0.13195771]
[1645215673566,0.00125751,40126.0,40121.0,0.13195771]
[1645215673764,0.00125751,40126.0,40121.0,0.39676532]
[1645215674167,0.00125751,40126.0,40121.0,0.45910301]
[1645215674666,0.00125751,40126.0,40122.0,0.333386]
[1645215674866,0.00125751,40126.0,40124.0,0.13343707]
[1645215675315,0.00125751,40126.0,40125.0,0.333386]
[1645215675516,0.00125751,40126.0,40124.0,0.1956805]
[1645215675816,0.00125751,40126.0,40125.0,0.333386]
[1645215676015,0.00125751,40126.0,40124.0,0.1956805]
[1645215676214,0.00125751,40126.0,40124.0,0.06233265]
[1645215676415,0.00125751,40126.0,40125.0,0.333386]
[1645215676619,0.00125751,40126.0,40124.0,0.06233265]
[1645215678019,0.00125751,40126.0,40124.0,0.13334785]
[1645215678219,0.00125751,40126.0,40123.0,0.13334785]
[1645215679460,0.00125751,40126.0,40124.0,0.333386]
[1645215679663,0.00125751,40126.0,40122.0,0.0097]
[1645215679861,0.00125751,40126.0,40123.0,0.333386]
[1645215680261,0.00125751,40126.0,40122.0,0.0097]
[1645215680460,0.05859751,40130.0,40123.0,0.333386]
[1645215680661,0.05859751,40130.0,40122.0,0.0097]
[1645215681864,0.05859751,40130.0,40123.0,0.0623363]
[1645215682665,0.05859751,40130.0,40123.0,0.19568415]
[1645215683111,0.05859751,40130.0,40123.0,0.0623363]
[1645215683512,0.11093137,40128.0,40122.0,0.018284]
[1645215683711,0.05859751,40130.0,40122.0,0.018284]
[1645215684618,0.06235201,40134.0,40127.0,0.13334785]
[1645215684815,0.05,40134.0,40130.0,0.010124]
[1645215685017,0.01401786,40148.0,40131.0,1.41463243]
[1645215685213,0.22967552,40149.0,40142.0,0.13334785]
[1645215685214,0.04797552,40149.0,40142.0,0.13334785]
[1645215685413,0.04797552,40149.0,40142.0,0.14236485]
[1645215685614,0.04797552,40149.0,40142.0,0.009017]
[1645215685814,0.31256905,40147.0,40142.0,0.009017]
[1645215686015,0.11598599,40144.0,40138.0,0.06231511]
[1645215686669,0.06401518,40149.0,40142.0,2.5558582]
[1645215686872,0.062318,40145.0,40142.0,2.5558582]
[1645215687072,0.062318,40145.0,40138.0,0.06231511]
[1645215687273,0.4424508,40149.0,40138.0,0.06231511]
[1645215687573,0.01508234,40148.0,40137.0,0.010219]
[1645215687771,0.02448234,40148.0,40137.0,0.010219]
[1645215688171,0.062325,40146.0,40137.0,0.010219]
[1645215688370,0.25622675,40142.0,40137.0,0.010219]
[1645215688573,0.13186861,40138.0,40137.0,0.010219]
[1645215688872,0.13186861,40138.0,40136.0,0.0095]
[1645215689071,0.18186861,40138.0,40134.0,0.008584]
[1645215689271,0.18186861,40138.0,40130.0,0.010124]
[1645215689673,0.33402408,40135.0,40130.0,0.010124]
[1645215689878,0.48382408,40135.0,40128.0,0.0091]
[1645215690073,0.53382408,40135.0,40128.0,0.0091]
[1645215691119,0.12995849,40131.0,40128.0,0.0091]
[1645215691328,0.24229849,40131.0,40128.0,0.0091]
[1645215691520,0.01340481,40130.0,40127.0,0.008584]
[1645215691720,0.01417151,40129.0,40123.0,0.008584]
[1645215692120,0.01417151,40129.0,40123.0,0.35442952]
[1645215693722,0.06397151,40129.0,40123.0,0.35442952]
[1645215694164,0.06397151,40129.0,40123.0,0.008584]
[1645215694565,0.23598674,40126.0,40123.0,0.008584]
[1645215694767,0.06397151,40129.0,40123.0,0.008584]
[1645215695364,0.06397151,40129.0,40123.0,0.32142214]
[1645215695664,0.06397151,40129.0,40123.0,0.008584]
[1645215696163,0.25319371,40128.0,40123.0,0.008584]
[1645215696563,0.57356226,40128.0,40123.0,0.008584]
[1645215696764,0.25319371,40128.0,40123.0,0.008584]
[1645215696964,0.35319371,40128.0,40123.0,0.008584]
[1645215697817,0.15,40128.0,40123.0,0.008584]
[1645215698116,0.05,40128.0,40123.0,0.008584]
[1645215698718,0.01417151,40129.0,40123.0,0.308584]
[1645215698917,0.01417151,40129.0,40125.0,0.89474785]
[1645215699118,0.00114523,40131.0,40127.0,0.14356685]
[1645215699317,0.00114523,40131.0,40127.0,0.010219]
[1645215699716,0.00114523,40131.0,40128.0,0.12763285]
[1645215699917,0.00114523,40131.0,40129.0,0.57880713]
[1645215700321,0.09892459,40137.0,40129.0,0.57880713]
[1645215700620,0.09892459,40137.0,40130.0,0.009225]
[1645215700819,0.062331,40136.0,40130.0,0.009225]
[1645215701021,0.06510878,40135.0,40130.0,0.009225]
[1645215701219,0.01374781,40134.0,40129.0,0.0099]
[1645215701423,0.01374781,40134.0,40125.0,0.00110892]
[1645215701424,0.29462108,40133.0,40125.0,0.00110892]
[1645215701674,0.1,40129.0,40125.0,0.00110892]
[1645215701873,0.11168137,40127.0,40125.0,0.00110892]
[1645215702072,0.11168137,40127.0,40125.0,0.00102734]
[1645215702073,0.07151956,40126.0,40125.0,0.00102734]
[1645215702472,0.07151956,40126.0,40112.0,0.009]
[1645215702473,1.72567345,40125.0,40117.0,0.008584]
[1645215702674,0.22271788,40119.0,40112.0,0.018127]
[1645215702878,0.062367,40118.0,40112.0,0.009127]
[1645215703081,0.112167,40118.0,40112.0,0.009127]
[1645215703475,0.14808781,40117.0,40112.0,0.009127]
[1645215703675,0.01326755,40116.0,40112.0,0.33264546]
[1645215703874,0.01326755,40116.0,40112.0,0.32351846]
[1645215704275,0.0498,40115.0,40112.0,0.32351846]
[1645215704474,0.112164,40115.0,40111.0,0.10293688]
[1645215704678,0.0998,40115.0,40111.0,0.10293688]
[1645215704875,0.01326755,40116.0,40111.0,0.10293688]
[1645215705076,0.1,40122.0,40112.0,0.009726]
[1645215705314,0.12,40124.0,40116.0,0.010219]
[1645215705315,0.0093,40123.0,40116.0,0.010219]
[1645215705519,0.0498,40121.0,40116.0,0.010219]
[1645215705716,0.17888813,40121.0,40116.0,0.010219]
[1645215706719,0.22888813,40121.0,40116.0,0.010219]
[1645215707019,0.0167091,40119.0,40116.0,0.010219]
[1645215707217,0.0167091,40119.0,40112.0,0.32509563]
[1645215707218,0.062364,40117.0,40112.0,0.32509563]
[1645215707419,0.062364,40117.0,40112.0,0.009726]
[1645215707623,0.12111217,40114.0,40112.0,0.009726]
[1645215707820,0.17111217,40114.0,40109.0,0.008584]
[1645215709472,0.01630707,40112.0,40104.0,0.008584]
[1645215709670,0.20212648,40108.0,40104.0,0.008584]
[1645215710170,0.0498,40107.0,40104.0,0.008584]
[1645215710372,0.14550014,40107.0,40104.0,0.008584]
[1645215710676,0.0143691,40106.0,40102.0,0.001]
[1645215710873,0.0498,40105.0,40102.0,0.001]
[1645215711070,0.01295097,40104.0,40102.0,0.001]
[1645215711271,0.09570014,40107.0,40105.0,0.08664902]
[1645215711474,0.06451118,40106.0,40105.0,0.08664902]
[1645215712472,0.41095822,40106.0,40105.0,0.08664902]
[1645215712674,0.38285714,40107.0,40105.0,0.08664902]
[1645215712913,0.05,40106.0,40105.0,0.08664902]
[1645215713112,0.0998,40106.0,40105.0,0.08664902]
[1645215713315,0.0498,40106.0,40105.0,0.08664902]
[1645215715716,0.474586,40106.0,40105.0,0.08664902]
[1645215715920,0.574586,40106.0,40105.0,0.08664902]
[1645215716771,0.574586,40106.0,40105.0,0.02870371]
[1645215720317,0.57845275,40106.0,40105.0,3.71e-06]
[1645215720518,0.57845275,40106.0,40091.0,0.001]
[1645215720519,0.062407,40102.0,40091.0,0.001]
[1645215720721,0.1,40096.0,40091.0,0.001]
[1645215720921,0.1,40096.0,40092.0,0.00125843]
[1645215720922,0.06498862,40095.0,40092.0,0.00125843]